[Event "*** Titled Tuesday Blitz"]
[Site "Chess.com"]
[Date "2019.09.03"]
[Round "8"]
[White "hansen"]
[Black "YQPerez"]
[Result "0-1"]
[WhiteElo "2876"]
[BlackElo "2805"]
[TimeControl "180+2"]
[EndTime "16:51:26 PDT"]
[Termination "YQPerez won on time"]

1. e4 {[%clk 0:03:01.9]} 1... e5 {[%clk 0:02:59.3]} 2. Nf3 {[%clk 0:02:53.6]}
2... Nc6 {[%clk 0:03:00.4]} 3. Bb5 {[%clk 0:02:54.4]} 3... a6 {[%clk 0:02:59.5]}
4. Ba4 {[%clk 0:02:55.5]} 4... Nf6 {[%clk 0:03:00.7]} 5. O-O {[%clk 0:02:56]}
5... b5 {[%clk 0:03:00.4]} 6. Bb3 {[%clk 0:02:56.8]} 6... Bb7 {[%clk 0:03:02]}
7. d3 {[%clk 0:02:57.8]} 7... Be7 {[%clk 0:02:59.8]} 8. a3 {[%clk 0:02:56.7]}
8... O-O {[%clk 0:02:57.1]} 9. Nc3 {[%clk 0:02:57.7]} 9... d6 {[%clk 0:02:54.8]}
10. Bd2 {[%clk 0:02:49.5]} 10... Qd7 {[%clk 0:02:50.1]} 11. Nd5 {[%clk
0:02:44.9]} 11... Nxd5 {[%clk 0:02:48.6]} 12. exd5 {[%clk 0:02:40.8]} 12... Nd4
{[%clk 0:02:47.3]} 13. Nxd4 {[%clk 0:02:37.1]} 13... exd4 {[%clk 0:02:49.2]} 14.
Qf3 {[%clk 0:02:27.5]} 14... Bf6 {[%clk 0:02:45.1]} 15. Rfe1 {[%clk 0:02:23.3]}
15... Rfe8 {[%clk 0:02:40.8]} 16. h3 {[%clk 0:02:22.7]} 16... Rxe1+ {[%clk
0:02:33.6]} 17. Bxe1 {[%clk 0:02:17.2]} 17... Re8 {[%clk 0:02:35.2]} 18. a4
{[%clk 0:02:11.6]} 18... bxa4 {[%clk 0:02:30]} 19. Bc4 {[%clk 0:01:50.8]} 19...
c5 {[%clk 0:02:10.9]} 20. dxc6 {[%clk 0:01:44.6]} 20... Bxc6 {[%clk 0:02:04.9]}
21. Qh5 {[%clk 0:01:23.5]} 21... Qb7 {[%clk 0:01:58.6]} 22. Rb1 {[%clk
0:00:55.3]} 22... a3 {[%clk 0:01:52.3]} 23. Bb3 {[%clk 0:00:33]} 23... axb2
{[%clk 0:01:46.6]} 24. Bd2 {[%clk 0:00:31.4]} 24... g6 {[%clk 0:01:39.6]} 25.
Qg4 {[%clk 0:00:29.9]} 25... a5 {[%clk 0:01:26.8]} 26. Bxa5 {[%clk 0:00:14.9]}
26... Ra8 {[%clk 0:01:25.1]} 27. Bd2 {[%clk 0:00:03.1]} 27... Ra1 {[%clk
0:01:23.5]} 28. Qd1 {[%clk 0:00:04.1]} 28... Bxg2 {[%clk 0:01:12.5]} 29. Rxa1
{[%clk 0:00:04.6]} 29... bxa1=Q {[%clk 0:01:13]} 30. Qxa1 {[%clk 0:00:06.5]}
30... Bxh3 {[%clk 0:01:09.8]} 0-1

[Event "*** Titled Tuesday Blitz"]
[Site "Chess.com"]
[Date "2019.09.03"]
[Round "8"]
[White "Vasily_Papin"]
[Black "Ali_rastbod"]
[Result "1-0"]
[WhiteElo "2672"]
[BlackElo "2700"]
[TimeControl "180+2"]
[EndTime "16:51:35 PDT"]
[Termination "Vasily_Papin won by resignation"]

1. c4 {[%clk 0:02:08]} 1... g6 {[%clk 0:02:59.7]} 2. g3 {[%clk 0:02:08.5]} 2...
Bg7 {[%clk 0:03:01.6]} 3. Bg2 {[%clk 0:02:10.4]} 3... e5 {[%clk 0:02:57]} 4. Nc3
{[%clk 0:02:11]} 4... Nc6 {[%clk 0:02:58.9]} 5. Rb1 {[%clk 0:02:12.3]} 5... d6
{[%clk 0:03:00.5]} 6. b4 {[%clk 0:02:12]} 6... Nge7 {[%clk 0:02:56.2]} 7. d3
{[%clk 0:02:12.2]} 7... O-O {[%clk 0:02:55.8]} 8. e3 {[%clk 0:02:13.6]} 8... Rb8
{[%clk 0:02:51.6]} 9. Nge2 {[%clk 0:02:14.2]} 9... Be6 {[%clk 0:02:47.7]} 10.
O-O {[%clk 0:02:13.4]} 10... d5 {[%clk 0:02:46.2]} 11. b5 {[%clk 0:02:09]} 11...
Na5 {[%clk 0:02:45.8]} 12. cxd5 {[%clk 0:02:02.6]} 12... Nxd5 {[%clk 0:02:47.7]}
13. Ne4 {[%clk 0:01:57]} 13... b6 {[%clk 0:02:32]} 14. Ba3 {[%clk 0:01:57.8]}
14... Re8 {[%clk 0:02:33.3]} 15. Qc2 {[%clk 0:01:59.1]} 15... Rc8 {[%clk
0:02:23.9]} 16. Rfd1 {[%clk 0:01:52.9]} 16... f5 {[%clk 0:02:21.1]} 17. Nd2
{[%clk 0:01:51.4]} 17... Nb7 {[%clk 0:01:54.8]} 18. Qa4 {[%clk 0:01:48.5]} 18...
Ra8 {[%clk 0:01:50.1]} 19. Rbc1 {[%clk 0:01:38]} 19... Bf8 {[%clk 0:01:51.3]}
20. e4 {[%clk 0:01:30.5]} 20... Bxa3 {[%clk 0:01:39.4]} 21. Qxa3 {[%clk
0:01:21.7]} 21... fxe4 {[%clk 0:01:39.7]} 22. Nxe4 {[%clk 0:00:56.2]} 22... Rb8
{[%clk 0:00:44]} 23. d4 {[%clk 0:00:54.3]} 23... exd4 {[%clk 0:00:23.8]} 24.
Nxd4 {[%clk 0:00:30.4]} 24... Bg4 {[%clk 0:00:25]} 25. Nc6 {[%clk 0:00:29.1]}
25... Qd7 {[%clk 0:00:21.5]} 26. Rxd5 {[%clk 0:00:29.2]} 1-0

[Event "*** Titled Tuesday Blitz"]
[Site "Chess.com"]
[Date "2019.09.03"]
[Round "8"]
[White "Induwara_IM"]
[Black "kinga2008"]
[Result "0-1"]
[WhiteElo "2353"]
[BlackElo "1938"]
[TimeControl "180+2"]
[EndTime "16:51:48 PDT"]
[Termination "kinga2008 won by checkmate"]

1. d4 {[%clk 0:03:01.9]} 1... Nf6 {[%clk 0:03:00.3]} 2. c4 {[%clk 0:03:02.2]}
2... g6 {[%clk 0:03:02.2]} 3. Nc3 {[%clk 0:03:02.9]} 3... Bg7 {[%clk 0:03:04.1]}
4. e4 {[%clk 0:03:03.9]} 4... d6 {[%clk 0:03:06]} 5. h3 {[%clk 0:03:05.1]} 5...
O-O {[%clk 0:03:07.9]} 6. Be3 {[%clk 0:03:06.3]} 6... Nbd7 {[%clk 0:03:08.8]} 7.
g4 {[%clk 0:03:04.9]} 7... e5 {[%clk 0:03:10.7]} 8. d5 {[%clk 0:03:05.9]} 8...
h5 {[%clk 0:03:09.1]} 9. f3 {[%clk 0:03:06.3]} 9... Nh7 {[%clk 0:03:05.8]} 10.
Qd2 {[%clk 0:03:06.8]} 10... Ndf6 {[%clk 0:03:03.5]} 11. O-O-O {[%clk
0:03:00.9]} 11... a6 {[%clk 0:03:02.5]} 12. Kb1 {[%clk 0:03:00.7]} 12... Bd7
{[%clk 0:02:59.8]} 13. c5 {[%clk 0:03:00.3]} 13... b5 {[%clk 0:02:47.6]} 14.
cxb6 {[%clk 0:03:00.9]} 14... cxb6 {[%clk 0:02:48]} 15. Bd3 {[%clk 0:03:00.3]}
15... b5 {[%clk 0:02:49.2]} 16. Nge2 {[%clk 0:03:01.2]} 16... b4 {[%clk
0:02:48.6]} 17. Rc1 {[%clk 0:02:52.6]} 17... bxc3 {[%clk 0:02:49.3]} 18. Nxc3
{[%clk 0:02:53.8]} 18... Qa5 {[%clk 0:02:47.5]} 19. Bc4 {[%clk 0:02:40.7]} 19...
Rfb8 {[%clk 0:02:45.1]} 20. Bb3 {[%clk 0:02:42]} 20... Qb4 {[%clk 0:02:42.4]}
21. Ne2 {[%clk 0:02:37.1]} 21... Qxd2 {[%clk 0:02:40]} 22. Bxd2 {[%clk 0:02:39]}
22... Rc8 {[%clk 0:02:40.3]} 23. Ba5 {[%clk 0:02:29.4]} 23... Ng5 {[%clk
0:02:38.5]} 24. Rcf1 {[%clk 0:02:25.3]} 24... Bb5 {[%clk 0:02:38.3]} 25. Rh2
{[%clk 0:02:19.1]} 25... Bd3+ {[%clk 0:02:14]} 26. Ka1 {[%clk 0:02:17.8]} 26...
Nxf3 {[%clk 0:02:03.2]} 27. Rxf3 {[%clk 0:02:07.9]} 27... Bxe2 {[%clk
0:02:02.5]} 28. Rc3 {[%clk 0:02:08.4]} 28... Nxe4 {[%clk 0:01:54.2]} 29. Rxe2
{[%clk 0:02:05.5]} 29... Nxc3 {[%clk 0:01:53.2]} 30. bxc3 {[%clk 0:02:06]} 30...
hxg4 {[%clk 0:01:49.8]} 31. hxg4 {[%clk 0:02:07.9]} 31... Kf8 {[%clk 0:01:50.3]}
32. Kb2 {[%clk 0:02:07.4]} 32... Ke7 {[%clk 0:01:50]} 33. Ba4 {[%clk 0:02:06.4]}
33... Rc4 {[%clk 0:01:47]} 34. Bc6 {[%clk 0:02:03.7]} 34... Rb8+ {[%clk
0:01:47.6]} 35. Ka3 {[%clk 0:02:00.3]} 35... Rxg4 {[%clk 0:01:44.7]} 36. Bc7
{[%clk 0:02:00.8]} 36... Rc8 {[%clk 0:01:38.8]} 37. Bb6 {[%clk 0:02:00]} 37...
f5 {[%clk 0:01:36.3]} 38. Rh2 {[%clk 0:01:56.6]} 38... Rh8 {[%clk 0:01:35.9]}
39. Rb2 {[%clk 0:01:56.1]} 39... Rb8 {[%clk 0:01:26.5]} 40. Rb3 {[%clk
0:01:48.4]} 40... Rc4 {[%clk 0:01:12.4]} 41. Ba5 {[%clk 0:01:44.2]} 41... Rxb3+
{[%clk 0:01:09.3]} 42. axb3 {[%clk 0:01:46.1]} 42... Rh4 {[%clk 0:01:06.8]} 43.
Bb7 {[%clk 0:01:46.9]} 43... Rh8 {[%clk 0:01:02.1]} 44. b4 {[%clk 0:01:47]}
44... e4 {[%clk 0:01:01.4]} 45. Kb3 {[%clk 0:01:46.4]} 45... Rh3 {[%clk
0:01:00.8]} 46. b5 {[%clk 0:01:43.9]} 46... axb5 {[%clk 0:01:00.8]} 47. Bc6
{[%clk 0:01:45]} 47... e3 {[%clk 0:00:58.3]} 48. Bxb5 {[%clk 0:01:46.1]} 48...
f4 {[%clk 0:00:58.8]} 49. Kc2 {[%clk 0:01:46.4]} 49... f3 {[%clk 0:00:59.2]} 50.
Kd3 {[%clk 0:01:46.9]} 50... e2 {[%clk 0:00:56.9]} 51. Kd2 {[%clk 0:01:47.8]}
51... Rh1 {[%clk 0:00:48.9]} 52. c4 {[%clk 0:01:48.3]} 52... e1=Q+ {[%clk
0:00:48.9]} 53. Kd3 {[%clk 0:01:49.7]} 53... Qe2# {[%clk 0:00:48.3]} 0-1

[Event "*** Titled Tuesday Blitz"]
[Site "Chess.com"]
[Date "2019.09.03"]
[Round "8"]
[White "NicoChasin"]
[Black "Jenia84"]
[Result "1-0"]
[WhiteElo "2476"]
[BlackElo "2255"]
[TimeControl "180+2"]
[EndTime "16:51:51 PDT"]
[Termination "NicoChasin won by resignation"]

1. c4 {[%clk 0:03:01.9]} 1... Nf6 {[%clk 0:03:00]} 2. Nc3 {[%clk 0:03:01.9]}
2... e5 {[%clk 0:03:00.8]} 3. g3 {[%clk 0:03:02]} 3... Bb4 {[%clk 0:03:00.9]} 4.
Bg2 {[%clk 0:03:00.4]} 4... O-O {[%clk 0:03:00.9]} 5. Nf3 {[%clk 0:03:00.6]}
5... Nc6 {[%clk 0:03:00.7]} 6. O-O {[%clk 0:02:59.9]} 6... d5 {[%clk 0:02:51.1]}
7. cxd5 {[%clk 0:02:59.5]} 7... Nxd5 {[%clk 0:02:50.9]} 8. Nxe5 {[%clk
0:02:39.8]} 8... Nxc3 {[%clk 0:02:43.7]} 9. Nxc6 {[%clk 0:02:28.3]} 9... Nxe2+
{[%clk 0:02:07.3]} 10. Qxe2 {[%clk 0:02:27.3]} 10... bxc6 {[%clk 0:02:07.9]} 11.
Bxc6 {[%clk 0:02:29]} 11... Bh3 {[%clk 0:02:00.4]} 12. Bg2 {[%clk 0:02:18.9]}
12... Bxg2 {[%clk 0:01:56]} 13. Kxg2 {[%clk 0:02:19.7]} 13... Qd5+ {[%clk
0:01:31.1]} 14. Qf3 {[%clk 0:02:19.2]} 14... Qxf3+ {[%clk 0:01:31.7]} 15. Kxf3
{[%clk 0:02:21.1]} 15... Rad8 {[%clk 0:01:31.7]} 16. Rd1 {[%clk 0:02:19.2]}
16... Rd3+ {[%clk 0:01:24.6]} 17. Ke2 {[%clk 0:02:17.5]} 17... Rfd8 {[%clk
0:01:24.7]} 18. a3 {[%clk 0:02:17.6]} 18... Be7 {[%clk 0:01:14.4]} 19. b4 {[%clk
0:02:17.1]} 19... Bf6 {[%clk 0:01:11.9]} 20. Ra2 {[%clk 0:02:17.6]} 20... h5
{[%clk 0:01:04.2]} 21. Rc2 {[%clk 0:02:16.9]} 21... R3d7 {[%clk 0:00:42.8]} 22.
d3 {[%clk 0:02:17]} 22... Re8+ {[%clk 0:00:35.2]} 23. Be3 {[%clk 0:02:12.2]}
23... Bd4 {[%clk 0:00:35.2]} 24. Kf3 {[%clk 0:02:11.4]} 24... Bxe3 {[%clk
0:00:35.9]} 25. fxe3 {[%clk 0:02:11.2]} 25... g5 {[%clk 0:00:37.8]} 26. e4
{[%clk 0:02:10.1]} 26... Kg7 {[%clk 0:00:38.4]} 27. Rc5 {[%clk 0:02:09.2]} 27...
Kg6 {[%clk 0:00:39]} 28. d4 {[%clk 0:02:07.9]} 28... Re6 {[%clk 0:00:38.8]} 29.
e5 {[%clk 0:02:02.2]} 29... Ra6 {[%clk 0:00:38.8]} 30. Rc3 {[%clk 0:01:57.1]}
30... f5 {[%clk 0:00:37.7]} 31. d5 {[%clk 0:01:54.7]} 31... Re7 {[%clk
0:00:30.7]} 32. e6 {[%clk 0:01:10.1]} 32... Kf6 {[%clk 0:00:23.1]} 33. h4 {[%clk
0:01:09.1]} 33... gxh4 {[%clk 0:00:19.9]} 34. gxh4 {[%clk 0:01:10]} 34... Ke5
{[%clk 0:00:21.1]} 35. Re3+ {[%clk 0:01:08.5]} 35... Kd6 {[%clk 0:00:21.7]} 36.
Kf4 {[%clk 0:01:09.4]} 36... c6 {[%clk 0:00:21.6]} 37. dxc6+ {[%clk 0:01:07.5]}
37... Kxc6 {[%clk 0:00:22.8]} 38. Kxf5 {[%clk 0:01:08.8]} 38... Rb6 {[%clk
0:00:23.6]} 39. Kf6 {[%clk 0:01:09.2]} 39... Re8 {[%clk 0:00:23]} 40. e7 {[%clk
0:01:08.4]} 1-0

[Event "*** Titled Tuesday Blitz"]
[Site "Chess.com"]
[Date "2019.09.03"]
[Round "8"]
[White "HouseOfDurin"]
[Black "chickencrossroad"]
[Result "1-0"]
[WhiteElo "2053"]
[BlackElo "2501"]
[TimeControl "180+2"]
[EndTime "16:51:54 PDT"]
[Termination "HouseOfDurin won by checkmate"]

1. d4 {[%clk 0:03:01.9]} 1... d5 {[%clk 0:03:00.8]} 2. Bg5 {[%clk 0:03:03.1]}
2... Nf6 {[%clk 0:03:01.7]} 3. Bxf6 {[%clk 0:03:03.9]} 3... exf6 {[%clk
0:03:03.6]} 4. e3 {[%clk 0:03:05.3]} 4... Bd6 {[%clk 0:03:04.3]} 5. c4 {[%clk
0:03:06.7]} 5... dxc4 {[%clk 0:03:05.4]} 6. Bxc4 {[%clk 0:03:08]} 6... O-O
{[%clk 0:03:07.1]} 7. Nc3 {[%clk 0:03:09]} 7... Nd7 {[%clk 0:03:08.2]} 8. Nge2
{[%clk 0:03:09.7]} 8... f5 {[%clk 0:03:09.6]} 9. O-O {[%clk 0:02:51.7]} 9... Nf6
{[%clk 0:03:09.5]} 10. g3 {[%clk 0:02:39.9]} 10... b6 {[%clk 0:03:07.8]} 11. Bd3
{[%clk 0:02:00.8]} 11... g6 {[%clk 0:03:07.4]} 12. e4 {[%clk 0:01:54.1]} 12...
fxe4 {[%clk 0:03:08]} 13. Nxe4 {[%clk 0:01:53.4]} 13... Bb7 {[%clk 0:03:09.6]}
14. N2c3 {[%clk 0:01:51.8]} 14... Re8 {[%clk 0:03:07.9]} 15. Re1 {[%clk
0:01:50.9]} 15... Bb4 {[%clk 0:02:58.1]} 16. Qf3 {[%clk 0:01:35.3]} 16... Nxe4
{[%clk 0:02:32.8]} 17. Bxe4 {[%clk 0:01:36.2]} 17... Bxc3 {[%clk 0:01:40.8]} 18.
bxc3 {[%clk 0:01:29.4]} 18... Rxe4 {[%clk 0:00:48]} 19. Rxe4 {[%clk 0:01:31.3]}
19... Qd5 {[%clk 0:00:40]} 20. Rae1 {[%clk 0:01:21.2]} 20... Rf8 {[%clk
0:00:41.1]} 21. Qf6 {[%clk 0:01:01.7]} 21... Qxa2 {[%clk 0:00:30.4]} 22. Re8
{[%clk 0:00:47.1]} 22... Qa3 {[%clk 0:00:09.2]} 23. Qd8 {[%clk 0:00:42.3]} 23...
Kg7 {[%clk 0:00:02.9]} 24. Rxf8 {[%clk 0:00:22]} 24... Qxf8 {[%clk 0:00:04.8]}
25. Re8 {[%clk 0:00:22.7]} 25... Qd6 {[%clk 0:00:02.5]} 26. Rg8+ {[%clk
0:00:21.3]} 26... Kh6 {[%clk 0:00:04]} 27. Qh4# {[%clk 0:00:22.1]} 1-0

[Event "*** Titled Tuesday Blitz"]
[Site "Chess.com"]
[Date "2019.09.03"]
[Round "8"]
[White "champ2005"]
[Black "Witik"]
[Result "0-1"]
[WhiteElo "2828"]
[BlackElo "2578"]
[TimeControl "180+2"]
[EndTime "16:52:00 PDT"]
[Termination "Witik won by resignation"]

1. Nf3 {[%clk 0:03:01.6]} 1... Nf6 {[%clk 0:02:59.7]} 2. c4 {[%clk 0:03:02.6]}
2... g6 {[%clk 0:03:00.2]} 3. Nc3 {[%clk 0:03:03]} 3... Bg7 {[%clk 0:03:01.8]}
4. e4 {[%clk 0:03:03.7]} 4... d6 {[%clk 0:03:03]} 5. d4 {[%clk 0:03:04.7]} 5...
O-O {[%clk 0:03:04]} 6. Be2 {[%clk 0:03:05.4]} 6... e5 {[%clk 0:03:05]} 7. O-O
{[%clk 0:03:05.7]} 7... Nc6 {[%clk 0:03:06.2]} 8. d5 {[%clk 0:03:06.4]} 8... Ne7
{[%clk 0:03:07.8]} 9. Ne1 {[%clk 0:03:05.4]} 9... Nd7 {[%clk 0:03:08.6]} 10. Nd3
{[%clk 0:03:05.3]} 10... a5 {[%clk 0:03:03]} 11. Be3 {[%clk 0:02:56.1]} 11... f5
{[%clk 0:03:02.7]} 12. f3 {[%clk 0:02:56.8]} 12... b6 {[%clk 0:02:45.2]} 13. a3
{[%clk 0:02:56.4]} 13... f4 {[%clk 0:02:33.4]} 14. Bf2 {[%clk 0:02:57.1]} 14...
g5 {[%clk 0:02:32.5]} 15. b4 {[%clk 0:02:58.3]} 15... Rf6 {[%clk 0:02:31.9]} 16.
c5 {[%clk 0:02:58.7]} 16... Rh6 {[%clk 0:02:24.1]} 17. cxd6 {[%clk 0:02:58.1]}
17... cxd6 {[%clk 0:02:24.9]} 18. Rc1 {[%clk 0:02:55.6]} 18... axb4 {[%clk
0:02:22.3]} 19. axb4 {[%clk 0:02:54.9]} 19... Qe8 {[%clk 0:02:18.5]} 20. Nb5
{[%clk 0:02:14.6]} 20... Qh5 {[%clk 0:01:54.5]} 21. h3 {[%clk 0:01:51.1]} 21...
Nc5 {[%clk 0:01:44]} 22. h4 {[%clk 0:01:26.4]} 22... Ng6 {[%clk 0:01:03.7]} 23.
bxc5 {[%clk 0:00:58.2]} 23... Nxh4 {[%clk 0:00:57.3]} 24. Bxh4 {[%clk
0:00:51.7]} 24... Qxh4 {[%clk 0:00:58.4]} 25. cxd6 {[%clk 0:00:36.3]} 25... Qh2+
{[%clk 0:00:47.1]} 26. Kf2 {[%clk 0:00:33.3]} 26... Qg3+ {[%clk 0:00:47.8]} 27.
Kg1 {[%clk 0:00:34.6]} 27... Rh2 {[%clk 0:00:26.4]} 28. Rxc8+ {[%clk 0:00:19.2]}
28... Rxc8 {[%clk 0:00:25.1]} 29. Ne1 {[%clk 0:00:18.8]} 29... Qh4 {[%clk
0:00:21.6]} 0-1

[Event "*** Titled Tuesday Blitz"]
[Site "Chess.com"]
[Date "2019.09.03"]
[Round "8"]
[White "Iustin106"]
[Black "Sutormin_DA"]
[Result "1-0"]
[WhiteElo "2512"]
[BlackElo "2601"]
[TimeControl "180+2"]
[EndTime "16:52:03 PDT"]
[Termination "Iustin106 won on time"]

1. d4 {[%clk 0:03:01.9]} 1... Nf6 {[%clk 0:02:42.7]} 2. c4 {[%clk 0:03:01.5]}
2... g6 {[%clk 0:02:43.9]} 3. Nc3 {[%clk 0:03:02.5]} 3... Bg7 {[%clk 0:02:45.7]}
4. e4 {[%clk 0:03:03.7]} 4... d6 {[%clk 0:02:47.2]} 5. Nf3 {[%clk 0:03:05.1]}
5... O-O {[%clk 0:02:48.6]} 6. h3 {[%clk 0:03:06.5]} 6... e5 {[%clk 0:02:49.4]}
7. d5 {[%clk 0:03:05.8]} 7... a5 {[%clk 0:02:50.7]} 8. Be3 {[%clk 0:03:06.4]}
8... Na6 {[%clk 0:02:51.9]} 9. g4 {[%clk 0:03:07.9]} 9... Nd7 {[%clk 0:02:53.2]}
10. a3 {[%clk 0:03:08.8]} 10... Nac5 {[%clk 0:02:29.9]} 11. Rg1 {[%clk
0:03:03.3]} 11... Kh8 {[%clk 0:02:30.4]} 12. Nd2 {[%clk 0:02:59.3]} 12... f5
{[%clk 0:02:01.9]} 13. gxf5 {[%clk 0:02:38.6]} 13... gxf5 {[%clk 0:02:03.8]} 14.
exf5 {[%clk 0:02:40.1]} 14... Nf6 {[%clk 0:02:04.2]} 15. b4 {[%clk 0:02:37.8]}
15... axb4 {[%clk 0:01:54.1]} 16. axb4 {[%clk 0:02:38.5]} 16... Rxa1 {[%clk
0:01:55.6]} 17. Qxa1 {[%clk 0:02:40.4]} 17... Na6 {[%clk 0:01:53.9]} 18. Qb1
{[%clk 0:02:34.1]} 18... e4 {[%clk 0:01:52.4]} 19. Ndxe4 {[%clk 0:02:20.3]}
19... Bxf5 {[%clk 0:01:37.6]} 20. Bd3 {[%clk 0:02:20.5]} 20... Nxe4 {[%clk
0:01:23]} 21. Nxe4 {[%clk 0:02:19.4]} 21... Qh4 {[%clk 0:01:12.5]} 22. Ng5
{[%clk 0:01:15.3]} 22... Bxd3 {[%clk 0:01:00.6]} 23. Qxd3 {[%clk 0:01:17.2]}
23... Nxb4 {[%clk 0:01:01.2]} 24. Qb1 {[%clk 0:01:06.7]} 24... Bc3+ {[%clk
0:00:40.3]} 25. Kd1 {[%clk 0:00:41.4]} 25... Qh5+ {[%clk 0:00:38.1]} 26. Rg4
{[%clk 0:00:42.1]} 26... Ra8 {[%clk 0:00:39.1]} 27. Qf5 {[%clk 0:00:25.4]} 1-0

[Event "*** Titled Tuesday Blitz"]
[Site "Chess.com"]
[Date "2019.09.03"]
[Round "8"]
[White "promen1999"]
[Black "Hrant_ChessMood"]
[Result "1-0"]
[WhiteElo "2767"]
[BlackElo "2866"]
[TimeControl "180+2"]
[EndTime "16:52:06 PDT"]
[Termination "promen1999 won on time"]

1. d4 {[%clk 0:03:01.9]} 1... Nf6 {[%clk 0:03:00.4]} 2. c4 {[%clk 0:03:01.7]}
2... g6 {[%clk 0:03:01.5]} 3. Nc3 {[%clk 0:03:02.2]} 3... Bg7 {[%clk 0:03:03]}
4. e4 {[%clk 0:03:03.2]} 4... d6 {[%clk 0:03:03.4]} 5. h3 {[%clk 0:03:04.6]}
5... O-O {[%clk 0:03:03.4]} 6. Be3 {[%clk 0:03:05.8]} 6... Na6 {[%clk
0:03:02.2]} 7. Nf3 {[%clk 0:03:01.2]} 7... c5 {[%clk 0:02:52.6]} 8. d5 {[%clk
0:02:59.3]} 8... e6 {[%clk 0:02:52]} 9. Bd3 {[%clk 0:02:51.6]} 9... exd5 {[%clk
0:02:52.3]} 10. exd5 {[%clk 0:02:52.4]} 10... Nb4 {[%clk 0:02:52]} 11. Bb1
{[%clk 0:02:53.9]} 11... b5 {[%clk 0:02:51.5]} 12. a3 {[%clk 0:02:48.4]} 12...
bxc4 {[%clk 0:02:12.9]} 13. axb4 {[%clk 0:02:47.4]} 13... cxb4 {[%clk
0:02:14.2]} 14. Ne2 {[%clk 0:02:48.9]} 14... Bb7 {[%clk 0:02:12]} 15. Bd4 {[%clk
0:02:42.8]} 15... a5 {[%clk 0:01:47.8]} 16. O-O {[%clk 0:02:40.9]} 16... Re8
{[%clk 0:01:45.3]} 17. Nf4 {[%clk 0:02:36.1]} 17... Rc8 {[%clk 0:01:29.7]} 18.
Bc2 {[%clk 0:02:28.8]} 18... b3 {[%clk 0:01:26.1]} 19. Bb1 {[%clk 0:02:30.3]}
19... Ra8 {[%clk 0:01:04.8]} 20. Ra4 {[%clk 0:02:23.1]} 20... Ba6 {[%clk
0:01:03.8]} 21. Bc3 {[%clk 0:02:22]} 21... Bb5 {[%clk 0:01:04.5]} 22. Ra3 {[%clk
0:02:20.7]} 22... a4 {[%clk 0:01:01.9]} 23. Nd4 {[%clk 0:02:15.1]} 23... Bd7
{[%clk 0:01:02.8]} 24. Nc6 {[%clk 0:02:10.4]} 24... Qb6 {[%clk 0:00:53.6]} 25.
Qf3 {[%clk 0:02:03.9]} 25... Bxc6 {[%clk 0:00:33]} 26. dxc6 {[%clk 0:02:04.1]}
26... Qc5 {[%clk 0:00:24]} 27. c7 {[%clk 0:01:41.1]} 27... d5 {[%clk 0:00:19.8]}
28. Rd1 {[%clk 0:01:39]} 28... Qc6 {[%clk 0:00:13.1]} 29. g4 {[%clk 0:01:27.2]}
29... Rac8 {[%clk 0:00:13.7]} 30. g5 {[%clk 0:01:19.6]} 30... Ne4 {[%clk
0:00:14.6]} 31. Bxg7 {[%clk 0:01:19.7]} 31... Kxg7 {[%clk 0:00:10.1]} 32. Rxd5
{[%clk 0:01:07.3]} 32... Nxg5 {[%clk 0:00:10.2]} 33. Qc3+ {[%clk 0:01:05.4]}
33... Qf6 {[%clk 0:00:09.6]} 34. Nh5+ {[%clk 0:01:03.9]} 34... Kh6 {[%clk
0:00:04.7]} 35. Nxf6 {[%clk 0:01:03.5]} 1-0

[Event "*** Titled Tuesday Blitz"]
[Site "Chess.com"]
[Date "2019.09.03"]
[Round "8"]
[White "wonderfultime"]
[Black "bubacik"]
[Result "1/2-1/2"]
[WhiteElo "2940"]
[BlackElo "2748"]
[TimeControl "180+2"]
[EndTime "16:52:09 PDT"]
[Termination "Game drawn by repetition"]

1. d4 {[%clk 0:02:52.6]} 1... Nf6 {[%clk 0:03:00.7]} 2. Nf3 {[%clk 0:02:53.2]}
2... d5 {[%clk 0:02:58.3]} 3. Bf4 {[%clk 0:02:53.9]} 3... g6 {[%clk 0:02:49.9]}
4. h3 {[%clk 0:02:54.1]} 4... Bg7 {[%clk 0:02:51]} 5. e3 {[%clk 0:02:55.7]} 5...
O-O {[%clk 0:02:52.4]} 6. Be2 {[%clk 0:02:57.2]} 6... b6 {[%clk 0:02:51.7]} 7.
O-O {[%clk 0:02:57.8]} 7... Bb7 {[%clk 0:02:53.1]} 8. a4 {[%clk 0:02:59.1]} 8...
Nc6 {[%clk 0:02:52]} 9. Nbd2 {[%clk 0:02:58.4]} 9... Re8 {[%clk 0:02:39.8]} 10.
c3 {[%clk 0:02:54.3]} 10... Ne4 {[%clk 0:02:37.7]} 11. Bh2 {[%clk 0:02:50.7]}
11... e5 {[%clk 0:02:34.7]} 12. dxe5 {[%clk 0:02:16.9]} 12... Nxe5 {[%clk
0:02:32.4]} 13. a5 {[%clk 0:02:17]} 13... Nxd2 {[%clk 0:02:27]} 14. Qxd2 {[%clk
0:02:12.6]} 14... Nc4 {[%clk 0:02:26.6]} 15. Bxc4 {[%clk 0:02:13.2]} 15... dxc4
{[%clk 0:02:27.3]} 16. Qxd8 {[%clk 0:02:15.1]} 16... Raxd8 {[%clk 0:02:04.7]}
17. Bxc7 {[%clk 0:02:16.3]} 17... Rc8 {[%clk 0:02:03.7]} 18. axb6 {[%clk
0:02:17.4]} 18... axb6 {[%clk 0:02:03.7]} 19. Bxb6 {[%clk 0:02:19.3]} 19... Bxf3
{[%clk 0:02:04.4]} 20. gxf3 {[%clk 0:02:11.2]} 20... Rb8 {[%clk 0:02:05.6]} 21.
Bd4 {[%clk 0:01:38.6]} 21... Rxb2 {[%clk 0:02:07.5]} 22. Ra4 {[%clk 0:01:34.9]}
22... Rc8 {[%clk 0:02:07.5]} 23. Rc1 {[%clk 0:01:19]} 23... Bxd4 {[%clk
0:01:36.7]} 24. exd4 {[%clk 0:01:20.9]} 24... Rd2 {[%clk 0:01:32.7]} 25. Re1
{[%clk 0:01:18.4]} 25... Rb8 {[%clk 0:01:06.3]} 26. Rxc4 {[%clk 0:00:43.8]}
26... Rbb2 {[%clk 0:01:06.7]} 27. Rf1 {[%clk 0:00:45.3]} 27... Rbc2 {[%clk
0:01:07.4]} 28. Kg2 {[%clk 0:00:46]} 28... Rd3 {[%clk 0:01:07.8]} 29. Kg3 {[%clk
0:00:47.4]} 29... Kg7 {[%clk 0:01:05.2]} 30. Kf4 {[%clk 0:00:44.3]} 30... Rcxc3
{[%clk 0:00:54.3]} 31. Rxc3 {[%clk 0:00:45]} 31... Rxc3 {[%clk 0:00:56.2]} 32.
Re1 {[%clk 0:00:31.5]} 32... Kf6 {[%clk 0:00:55.4]} 33. Ra1 {[%clk 0:00:18.4]}
33... Rc2 {[%clk 0:00:51.7]} 34. Ke3 {[%clk 0:00:18.2]} 34... Rc3+ {[%clk
0:00:52.1]} 35. Ke4 {[%clk 0:00:19.7]} 35... Rc2 {[%clk 0:00:52.2]} 36. Ra6+
{[%clk 0:00:13.2]} 36... Ke7 {[%clk 0:00:53.3]} 37. Ra7+ {[%clk 0:00:14.1]}
37... Kf6 {[%clk 0:00:54.3]} 38. Ra6+ {[%clk 0:00:14.6]} 38... Ke7 {[%clk
0:00:54.7]} 39. Ke3 {[%clk 0:00:14]} 39... Rc3+ {[%clk 0:00:55.3]} 40. Ke4
{[%clk 0:00:13.1]} 40... Rc2 {[%clk 0:00:56.7]} 1/2-1/2